[Event "Titled Tuesday Blitz February 21 Early 2023"]
[White "Koridze, Lile"]
[Black "Karas, Marek"]
[WhiteFideId "13612514"]
[BlackFideId "14928558"]
[WhiteElo "2191"]
[BlackElo "2227"]
[Result "0-1"]
[Round "04"]
[TimeControl "180+2"]
[Date "2023.02.21"]
[WhiteClock "0:00:03"]
[BlackClock "0:01:32"]

1. d4 {[%clk 0:03:00]}  Nf6 {[%clk 0:02:57]} 2. c4 {[%clk 0:02:59]}  e6 {[%clk 0:02:56]} 3. Nf3 {[%clk 0:02:58]}  b6 {[%clk 0:02:55]} 4. g3 {[%clk 0:02:57]}  Bb7 {[%clk 0:02:55]} 5. Bg2 {[%clk 0:02:57]}  Be7 {[%clk 0:02:55]} 6. O-O {[%clk 0:02:57]}  O-O {[%clk 0:02:55]} 7. Re1 {[%clk 0:02:49]}  d5 {[%clk 0:02:53]} 8. Qc2 {[%clk 0:02:19]}  dxc4 {[%clk 0:02:48]} 9. Qxc4 {[%clk 0:02:17]}  Nbd7 {[%clk 0:02:47]} 10. Bf4 {[%clk 0:02:16]}  Bd6 {[%clk 0:02:45]} 11. Ne5 {[%clk 0:02:13]}  Bxg2 {[%clk 0:02:44]} 12. Kxg2 {[%clk 0:02:14]}  Bxe5 {[%clk 0:02:44]} 13. dxe5 {[%clk 0:02:06]}  Nd5 {[%clk 0:02:43]} 14. Nc3 {[%clk 0:02:06]}  Nxc3 {[%clk 0:02:41]} 15. Qxc3 {[%clk 0:02:06]}  Qc8 {[%clk 0:02:32]} 16. Red1 {[%clk 0:02:06]}  Qb7+ {[%clk 0:02:32]} 17. f3 {[%clk 0:02:06]}  Rfd8 {[%clk 0:02:32]} 18. b4 {[%clk 0:02:03]}  Nf8 {[%clk 0:02:28]} 19. Rd3 {[%clk 0:02:01]}  Rxd3 {[%clk 0:02:25]} 20. exd3 {[%clk 0:02:01]}  Rd8 {[%clk 0:02:22]} 21. Rc1 {[%clk 0:02:00]}  Rd7 {[%clk 0:02:22]} 22. b5 {[%clk 0:01:55]}  Qd5 {[%clk 0:02:21]} 23. a4 {[%clk 0:01:55]}  Qa2+ {[%clk 0:02:17]} 24. Qc2 {[%clk 0:01:54]}  Qxc2+ {[%clk 0:02:16]} 25. Rxc2 {[%clk 0:01:55]}  Ng6 {[%clk 0:02:16]} 26. Kf2 {[%clk 0:01:51]}  Ne7 {[%clk 0:02:13]} 27. Be3 {[%clk 0:01:47]}  Nd5 {[%clk 0:02:13]} 28. Rc4 {[%clk 0:01:47]}  h6 {[%clk 0:02:13]} 29. f4 {[%clk 0:01:35]}  Kf8 {[%clk 0:02:11]} 30. Kf3 {[%clk 0:01:29]}  g6 {[%clk 0:02:11]} 31. Bc1 {[%clk 0:01:26]}  Rd8 {[%clk 0:02:11]} 32. Ba3+ {[%clk 0:01:23]}  Ke8 {[%clk 0:02:11]} 33. Ke4 {[%clk 0:01:22]}  a6 {[%clk 0:02:10]} 34. Bb2 {[%clk 0:01:18]}  axb5 {[%clk 0:02:10]} 35. axb5 {[%clk 0:01:19]}  Ra8 {[%clk 0:02:10]} 36. g4 {[%clk 0:00:29]}  Ra2 {[%clk 0:02:07]} 37. Rc2 {[%clk 0:00:29]}  Kd7 {[%clk 0:02:02]} 38. f5 {[%clk 0:00:29]}  Ra4+ {[%clk 0:01:59]} 39. d4 {[%clk 0:00:26]}  Rb4 {[%clk 0:01:52]} 40. Ba3 {[%clk 0:00:26]}  Rb3 {[%clk 0:01:50]} 41. Bc1 {[%clk 0:00:24]}  h5 {[%clk 0:01:44]} 42. fxe6+ {[%clk 0:00:17]}  fxe6 {[%clk 0:01:43]} 43. gxh5 {[%clk 0:00:17]}  gxh5 {[%clk 0:01:43]} 44. Rg2 {[%clk 0:00:14]}  Rxb5 {[%clk 0:01:37]} 45. Rg7+ {[%clk 0:00:14]}  Kc8 {[%clk 0:01:37]} 46. Rh7 {[%clk 0:00:14]}  Rb1 {[%clk 0:01:36]} 47. Bg5 {[%clk 0:00:13]}  b5 {[%clk 0:01:32]} 48. Rxh5 {[%clk 0:00:13]}  b4 {[%clk 0:01:33]} 49. Kd3 {[%clk 0:00:11]}  b3 {[%clk 0:01:33]} 50. Rh6 {[%clk 0:00:09]}  Kd7 {[%clk 0:01:31]} 51. Rh7+ {[%clk 0:00:07]}  Kc6 {[%clk 0:01:32]} 52. Rh8 {[%clk 0:00:07]}  Rd1+ {[%clk 0:01:31]} 53. Ke2 {[%clk 0:00:04]}  Nc3+ {[%clk 0:01:31]} 54. Kf2 {[%clk 0:00:03]}  b2 {[%clk 0:01:32]} 0-1


[Site "https://www.chess.com"]

[Event "Titled Tuesday Blitz February 21 Early 2023"]
[White "Bethke, Richard"]
[Black "I_KID_you_not"]
[WhiteFideId "12959243"]
[WhiteElo "2382"]
[BlackElo "2364"]
[Result "0-1"]
[Round "04"]
[TimeControl "180+2"]
[Date "2023.02.21"]
[WhiteClock "0:00:37"]
[BlackClock "0:01:03"]

1. e4 {[%clk 0:03:00]}  c5 {[%clk 0:02:59]} 2. Nf3 {[%clk 0:02:59]}  Nc6 {[%clk 0:02:59]} 3. d4 {[%clk 0:03:00]}  cxd4 {[%clk 0:02:59]} 4. Nxd4 {[%clk 0:03:00]}  e5 {[%clk 0:03:00]} 5. Nb5 {[%clk 0:02:51]}  d6 {[%clk 0:03:00]} 6. N1c3 {[%clk 0:02:38]}  a6 {[%clk 0:02:59]} 7. Na3 {[%clk 0:02:27]}  Be7 {[%clk 0:02:59]} 8. Nd5 {[%clk 0:02:16]}  Nf6 {[%clk 0:02:59]} 9. Be3 {[%clk 0:02:16]}  Nxd5 {[%clk 0:02:52]} 10. exd5 {[%clk 0:02:17]}  Nd4 {[%clk 0:02:51]} 11. Bxd4 {[%clk 0:02:13]}  exd4 {[%clk 0:02:51]} 12. Qxd4 {[%clk 0:02:13]}  O-O {[%clk 0:02:50]} 13. O-O-O {[%clk 0:02:13]}  Bf6 {[%clk 0:02:48]} 14. Qb4 {[%clk 0:02:13]}  b5 {[%clk 0:02:41]} 15. h4 {[%clk 0:02:04]}  Bd7 {[%clk 0:02:39]} 16. g4 {[%clk 0:02:01]}  Bxh4 {[%clk 0:02:33]} 17. Qxd6 {[%clk 0:01:59]}  Bg5+ {[%clk 0:02:25]} 18. f4 {[%clk 0:01:48]}  Bxg4 {[%clk 0:02:25]} 19. Qxd8 {[%clk 0:01:47]}  Bxd8 {[%clk 0:02:25]} 20. Re1 {[%clk 0:01:33]}  Bf3 {[%clk 0:02:19]} 21. Rg1 {[%clk 0:01:25]}  Bxd5 {[%clk 0:02:18]} 22. Bd3 {[%clk 0:01:23]}  Bb6 {[%clk 0:02:14]} 23. Rg5 {[%clk 0:01:20]}  Rad8 {[%clk 0:02:04]} 24. c4 {[%clk 0:01:19]}  Be6 {[%clk 0:01:31]} 25. cxb5 {[%clk 0:01:11]}  Rxd3 {[%clk 0:01:30]} 26. bxa6 {[%clk 0:01:12]}  Ra8 {[%clk 0:01:25]} 27. Rb5 {[%clk 0:01:07]}  Be3+ {[%clk 0:01:16]} 28. Kb1 {[%clk 0:00:48]}  Bxf4 {[%clk 0:01:13]} 29. Re4 {[%clk 0:00:45]}  Bd6 {[%clk 0:01:09]} 30. Rb6 {[%clk 0:00:37]}  Bf5 {[%clk 0:01:03]} 0-1


[Site "https://www.chess.com"]

[Event "Titled Tuesday Blitz February 21 Early 2023"]
[White "Todev, Simeon"]
[Black "Manukyan, Artyom"]
[WhiteFideId "2925133"]
[BlackFideId "13305786"]
[WhiteElo "2033"]
[BlackElo "2110"]
[Result "0-1"]
[Round "04"]
[TimeControl "180+2"]
[Date "2023.02.21"]
[WhiteClock "0:00:04"]
[BlackClock "0:00:06"]

1. d4 {[%clk 0:03:00]}  Nf6 {[%clk 0:02:57]} 2. c4 {[%clk 0:02:56]}  e6 {[%clk 0:02:57]} 3. Nc3 {[%clk 0:02:54]}  d5 {[%clk 0:02:56]} 4. Nf3 {[%clk 0:02:55]}  c5 {[%clk 0:02:56]} 5. e3 {[%clk 0:02:56]}  Nc6 {[%clk 0:02:55]} 6. cxd5 {[%clk 0:02:55]}  Nxd5 {[%clk 0:02:55]} 7. Bb5 {[%clk 0:02:55]}  Nxc3 {[%clk 0:02:53]} 8. bxc3 {[%clk 0:02:54]}  cxd4 {[%clk 0:02:53]} 9. exd4 {[%clk 0:02:52]}  Bd6 {[%clk 0:02:54]} 10. O-O {[%clk 0:02:50]}  O-O {[%clk 0:02:54]} 11. Bd3 {[%clk 0:02:50]}  g6 {[%clk 0:02:39]} 12. Bg5 {[%clk 0:02:49]}  Qc7 {[%clk 0:02:35]} 13. Bf6 {[%clk 0:02:47]}  Be7 {[%clk 0:02:32]} 14. Bxe7 {[%clk 0:02:43]}  Qxe7 {[%clk 0:02:33]} 15. Qd2 {[%clk 0:02:44]}  Kg7 {[%clk 0:02:32]} 16. Rfe1 {[%clk 0:02:43]}  Qf6 {[%clk 0:02:32]} 17. Re4 {[%clk 0:02:42]}  b6 {[%clk 0:02:27]} 18. Rh4 {[%clk 0:02:41]}  h5 {[%clk 0:02:23]} 19. Be4 {[%clk 0:02:40]}  Bb7 {[%clk 0:02:21]} 20. g4 {[%clk 0:02:38]}  Nxd4 {[%clk 0:01:57]} 21. Qxd4 {[%clk 0:01:15]}  Qxd4 {[%clk 0:01:55]} 22. Nxd4 {[%clk 0:01:15]}  Bxe4 {[%clk 0:01:56]} 23. gxh5 {[%clk 0:01:16]}  Bd5 {[%clk 0:01:55]} 24. Re1 {[%clk 0:01:06]}  gxh5 {[%clk 0:01:53]} 25. Rxh5 {[%clk 0:01:05]}  Rg8 {[%clk 0:01:53]} 26. f3 {[%clk 0:00:54]}  Bxa2 {[%clk 0:01:47]} 27. Kf2 {[%clk 0:00:47]}  Kf6 {[%clk 0:01:44]} 28. Rh6+ {[%clk 0:00:41]}  Rg6 {[%clk 0:01:42]} 29. Rxg6+ {[%clk 0:00:40]}  Kxg6 {[%clk 0:01:42]} 30. Ra1 {[%clk 0:00:38]}  Bc4 {[%clk 0:01:39]} 31. Nc6 {[%clk 0:00:36]}  Bd5 {[%clk 0:01:03]} 32. Nxa7 {[%clk 0:00:34]}  Kf5 {[%clk 0:01:01]} 33. Ke3 {[%clk 0:00:23]}  Rh8 {[%clk 0:00:52]} 34. Ra6 {[%clk 0:00:12]}  Rh3 {[%clk 0:00:49]} 35. Rxb6 {[%clk 0:00:10]}  Rxf3+ {[%clk 0:00:50]} 36. Kd4 {[%clk 0:00:10]}  Rf4+ {[%clk 0:00:42]} 37. Kd3 {[%clk 0:00:03]}  Rh4 {[%clk 0:00:40]} 38. Nc8 {[%clk 0:00:03]}  Rxh2 {[%clk 0:00:33]} 39. Kd4 {[%clk 0:00:03]}  Rh4+ {[%clk 0:00:32]} 40. Kd3 {[%clk 0:00:03]}  Be4+ {[%clk 0:00:30]} 41. Ke3 {[%clk 0:00:03]}  Bd5 {[%clk 0:00:28]} 42. Ne7+ {[%clk 0:00:02]}  Ke5 {[%clk 0:00:25]} 43. Rb5 {[%clk 0:00:03]}  Rh3+ {[%clk 0:00:24]} 44. Kd2 {[%clk 0:00:03]}  Kd6 {[%clk 0:00:21]} 45. Nxd5 {[%clk 0:00:02]}  exd5 {[%clk 0:00:22]} 46. Rb7 {[%clk 0:00:03]}  f5 {[%clk 0:00:22]} 47. Rf7 {[%clk 0:00:03]}  Ke5 {[%clk 0:00:22]} 48. Re7+ {[%clk 0:00:03]}  Kd6 {[%clk 0:00:22]} 49. Rf7 {[%clk 0:00:04]}  Ke6 {[%clk 0:00:22]} 50. Ra7 {[%clk 0:00:04]}  Rg3 {[%clk 0:00:21]} 51. Ra8 {[%clk 0:00:03]}  f4 {[%clk 0:00:17]} 52. Re8+ {[%clk 0:00:03]}  Kf5 {[%clk 0:00:16]} 53. Rf8+ {[%clk 0:00:04]}  Ke4 {[%clk 0:00:16]} 54. Re8+ {[%clk 0:00:04]}  Kf3 {[%clk 0:00:17]} 55. Re5 {[%clk 0:00:05]}  Rg2+ {[%clk 0:00:16]} 56. Kd3 {[%clk 0:00:06]}  Rg1 {[%clk 0:00:17]} 57. Kd2 {[%clk 0:00:06]}  Kf2 {[%clk 0:00:13]} 58. Re2+ {[%clk 0:00:05]}  Kg3 {[%clk 0:00:12]} 59. Re8 {[%clk 0:00:04]}  f3 {[%clk 0:00:12]} 60. Rg8+ {[%clk 0:00:04]}  Kf2 {[%clk 0:00:13]} 61. Rf8 {[%clk 0:00:04]}  Ra1 {[%clk 0:00:12]} 62. Kd3 {[%clk 0:00:03]}  Ra4 {[%clk 0:00:11]} 63. Rf5 {[%clk 0:00:02]}  Kg3 {[%clk 0:00:11]} 64. Rxd5 {[%clk 0:00:02]}  f2 {[%clk 0:00:11]} 65. Rf5 {[%clk 0:00:02]}  Kg2 {[%clk 0:00:09]} 66. Rg5+ {[%clk 0:00:02]}  Kh1 {[%clk 0:00:08]} 67. Rh5+ {[%clk 0:00:02]}  Kg1 {[%clk 0:00:09]} 68. Rg5+ {[%clk 0:00:03]}  Kf1 {[%clk 0:00:09]} 69. c4 {[%clk 0:00:02]}  Ra3+ {[%clk 0:00:09]} 70. Kd2 {[%clk 0:00:02]}  Ra4 {[%clk 0:00:09]} 71. c5 {[%clk 0:00:02]}  Rc4 {[%clk 0:00:09]} 72. Ke3 {[%clk 0:00:02]}  Ke1 {[%clk 0:00:08]} 73. Kd3 {[%clk 0:00:01]}  f1=Q+ {[%clk 0:00:07]} 74. Ke3 {[%clk 0:00:01]}  Rc3+ {[%clk 0:00:05]} 75. Kd4 {[%clk 0:00:02]}  Qc4+ {[%clk 0:00:06]} 76. Ke5 {[%clk 0:00:02]}  Qxc5+ {[%clk 0:00:06]} 77. Kf4 {[%clk 0:00:03]}  Rf3+ {[%clk 0:00:06]} 78. Kg4 {[%clk 0:00:04]}  Rg3+ {[%clk 0:00:06]} 0-1


[Site "https://www.chess.com"]

[Event "Titled Tuesday Blitz February 21 Early 2023"]
[White "Gerbelli Neto, Eduardo"]
[Black "Ferreira, Vitor Hugo Vieira"]
[WhiteFideId "2103281"]
[BlackFideId "2119765"]
[WhiteElo "2114"]
[BlackElo "2128"]
[Result "1-0"]
[Round "04"]
[TimeControl "180+2"]
[Date "2023.02.21"]
[WhiteClock "0:00:19"]
[BlackClock "0:00:06"]

1. e4 {[%clk 0:03:00]}  c6 {[%clk 0:02:50]} 2. d4 {[%clk 0:03:00]}  d5 {[%clk 0:02:51]} 3. exd5 {[%clk 0:03:01]}  cxd5 {[%clk 0:01:15]} 4. c4 {[%clk 0:03:00]}  Nf6 {[%clk 0:01:16]} 5. Nc3 {[%clk 0:02:59]}  e6 {[%clk 0:01:16]} 6. Nf3 {[%clk 0:02:59]}  Nc6 {[%clk 0:01:16]} 7. cxd5 {[%clk 0:02:59]}  exd5 {[%clk 0:01:16]} 8. Bd3 {[%clk 0:02:58]}  h6 {[%clk 0:01:16]} 9. h3 {[%clk 0:02:58]}  Bd6 {[%clk 0:01:15]} 10. O-O {[%clk 0:02:58]}  O-O {[%clk 0:01:16]} 11. Re1 {[%clk 0:02:55]}  Be6 {[%clk 0:01:15]} 12. Nb5 {[%clk 0:02:43]}  Bb8 {[%clk 0:01:12]} 13. Ne5 {[%clk 0:02:43]}  a6 {[%clk 0:01:12]} 14. Nxc6 {[%clk 0:02:43]}  bxc6 {[%clk 0:01:12]} 15. Nc3 {[%clk 0:02:44]}  Qd6 {[%clk 0:01:10]} 16. f4 {[%clk 0:02:35]}  Ba7 {[%clk 0:01:09]} 17. Bc2 {[%clk 0:02:26]}  c5 {[%clk 0:01:07]} 18. Ne2 {[%clk 0:02:04]}  cxd4 {[%clk 0:01:05]} 19. Qd3 {[%clk 0:01:58]}  Rac8 {[%clk 0:00:47]} 20. Bb3 {[%clk 0:01:50]}  Rc4 {[%clk 0:00:41]} 21. f5 {[%clk 0:01:46]}  Bxf5 {[%clk 0:00:34]} 22. Qxf5 {[%clk 0:01:39]}  d3+ {[%clk 0:00:35]} 23. Kh1 {[%clk 0:01:38]}  dxe2 {[%clk 0:00:36]} 24. Bxc4 {[%clk 0:01:26]}  Ne4 {[%clk 0:00:34]} 25. Bf4 {[%clk 0:01:21]}  Nf2+ {[%clk 0:00:17]} 26. Kh2 {[%clk 0:01:20]}  Qb4 {[%clk 0:00:15]} 27. Bxe2 {[%clk 0:01:11]}  g6 {[%clk 0:00:13]} 28. Qf6 {[%clk 0:00:58]}  Bd4 {[%clk 0:00:13]} 29. Qh4 {[%clk 0:00:50]}  Be5 {[%clk 0:00:11]} 30. g3 {[%clk 0:00:39]}  g5 {[%clk 0:00:09]} 31. Qxh6 {[%clk 0:00:35]}  gxf4 {[%clk 0:00:07]} 32. gxf4 {[%clk 0:00:34]}  Qxf4+ {[%clk 0:00:06]} 33. Qxf4 {[%clk 0:00:33]}  Bxf4+ {[%clk 0:00:07]} 34. Kg2 {[%clk 0:00:34]}  Ne4 {[%clk 0:00:07]} 35. Rad1 {[%clk 0:00:29]}  Rb8 {[%clk 0:00:05]} 36. b3 {[%clk 0:00:28]}  Nc3 {[%clk 0:00:04]} 37. Rd3 {[%clk 0:00:26]}  Be5 {[%clk 0:00:03]} 38. Bf3 {[%clk 0:00:24]}  f6 {[%clk 0:00:03]} 39. Rxe5 {[%clk 0:00:23]}  Kg7 {[%clk 0:00:04]} 40. Rxc3 {[%clk 0:00:23]}  fxe5 {[%clk 0:00:03]} 41. Bxd5 {[%clk 0:00:23]}  Kf6 {[%clk 0:00:04]} 42. Rc6+ {[%clk 0:00:23]}  Kf5 {[%clk 0:00:04]} 43. Rxa6 {[%clk 0:00:23]}  Rd8 {[%clk 0:00:04]} 44. Bf3 {[%clk 0:00:20]}  Rd2+ {[%clk 0:00:04]} 45. Kg3 {[%clk 0:00:20]}  e4 {[%clk 0:00:05]} 46. Bg4+ {[%clk 0:00:20]}  Ke5 {[%clk 0:00:05]} 47. Re6+ {[%clk 0:00:19]}  Kd4 {[%clk 0:00:04]} 48. a4 {[%clk 0:00:18]}  Ke3 {[%clk 0:00:04]} 49. Bf5 {[%clk 0:00:18]}  Rd4 {[%clk 0:00:04]} 50. Rxe4+ {[%clk 0:00:18]}  Rxe4 {[%clk 0:00:05]} 51. Bxe4 {[%clk 0:00:19]}  Kxe4 {[%clk 0:00:06]} 52. h4 {[%clk 0:00:19]} 1-0


[Site "https://www.chess.com"]

[Event "Titled Tuesday Blitz February 21 Early 2023"]
[White "Baches Garcia, Guillermo"]
[Black "Novikova, Galina"]
[WhiteFideId "2209764"]
[BlackFideId "4157095"]
[WhiteElo "2327"]
[BlackElo "2073"]
[Result "1-0"]
[Round "04"]
[TimeControl "180+2"]
[Date "2023.02.21"]
[WhiteClock "0:02:04"]
[BlackClock "0:02:37"]

1. d4 {[%clk 0:03:00]}  e6 {[%clk 0:02:59]} 2. c4 {[%clk 0:03:00]}  f5 {[%clk 0:02:59]} 3. g3 {[%clk 0:02:59]}  Nf6 {[%clk 0:03:00]} 4. Bg2 {[%clk 0:02:59]}  Be7 {[%clk 0:03:00]} 5. Nh3 {[%clk 0:02:59]}  O-O {[%clk 0:02:59]} 6. O-O {[%clk 0:02:58]}  d6 {[%clk 0:03:00]} 7. Nd2 {[%clk 0:02:53]}  e5 {[%clk 0:02:59]} 8. dxe5 {[%clk 0:02:43]}  dxe5 {[%clk 0:02:59]} 9. Nf3 {[%clk 0:02:42]}  Nc6 {[%clk 0:02:57]} 10. e3 {[%clk 0:02:30]}  h6 {[%clk 0:02:50]} 11. Nh4 {[%clk 0:02:16]}  Qe8 {[%clk 0:02:47]} 12. f4 {[%clk 0:02:12]}  e4 {[%clk 0:02:45]} 13. b3 {[%clk 0:02:05]}  Be6 {[%clk 0:02:37]} 14. Bb2 {[%clk 0:02:04]} 1-0


[Site "https://www.chess.com"]

[Event "Titled Tuesday Blitz February 21 Early 2023"]
[White "Mendez Fortes, Eduardo Jesus"]
[Black "Fajdetic, Hrvoje"]
[WhiteFideId "3502376"]
[BlackFideId "14501945"]
[WhiteElo "2250"]
[BlackElo "2151"]
[Result "1-0"]
[Round "04"]
[TimeControl "180+2"]
[Date "2023.02.21"]
[WhiteClock "0:00:50"]
[BlackClock "0:00:18"]

1. e4 {[%clk 0:03:00]}  c5 {[%clk 0:02:55]} 2. Nf3 {[%clk 0:03:00]}  a6 {[%clk 0:02:55]} 3. c4 {[%clk 0:03:00]}  Nc6 {[%clk 0:02:52]} 4. d4 {[%clk 0:02:59]}  cxd4 {[%clk 0:02:53]} 5. Nxd4 {[%clk 0:02:59]}  g6 {[%clk 0:02:54]} 6. Nc3 {[%clk 0:02:59]}  Bg7 {[%clk 0:02:54]} 7. Be3 {[%clk 0:02:59]}  d6 {[%clk 0:02:53]} 8. Be2 {[%clk 0:02:57]}  Nf6 {[%clk 0:02:52]} 9. Qd2 {[%clk 0:02:57]}  Ng4 {[%clk 0:02:40]} 10. Bxg4 {[%clk 0:02:56]}  Bxg4 {[%clk 0:02:35]} 11. f3 {[%clk 0:02:56]}  Bd7 {[%clk 0:02:31]} 12. O-O {[%clk 0:02:55]}  O-O {[%clk 0:02:28]} 13. Nc2 {[%clk 0:02:47]}  Rc8 {[%clk 0:02:22]} 14. Nd5 {[%clk 0:02:46]}  Ne5 {[%clk 0:01:32]} 15. b3 {[%clk 0:02:41]}  e6 {[%clk 0:01:25]} 16. Bb6 {[%clk 0:02:39]}  Qh4 {[%clk 0:01:22]} 17. g3 {[%clk 0:02:01]}  Qh5 {[%clk 0:01:13]} 18. Ne7+ {[%clk 0:01:55]}  Kh8 {[%clk 0:01:14]} 19. Nxc8 {[%clk 0:01:47]}  Nxf3+ {[%clk 0:01:11]} 20. Rxf3 {[%clk 0:01:48]}  Qxf3 {[%clk 0:01:12]} 21. Rf1 {[%clk 0:01:45]}  Qxe4 {[%clk 0:01:05]} 22. Nxd6 {[%clk 0:01:41]}  Qc6 {[%clk 0:01:00]} 23. Bd4 {[%clk 0:01:37]}  e5 {[%clk 0:00:54]} 24. Bc3 {[%clk 0:01:24]}  Kg8 {[%clk 0:00:37]} 25. Ne3 {[%clk 0:00:59]}  Qc5 {[%clk 0:00:27]} 26. b4 {[%clk 0:00:58]}  Qc7 {[%clk 0:00:24]} 27. Nd5 {[%clk 0:00:57]}  Qb8 {[%clk 0:00:23]} 28. Nf6+ {[%clk 0:00:54]}  Kh8 {[%clk 0:00:20]} 29. Nxd7 {[%clk 0:00:52]}  Qa7+ {[%clk 0:00:19]} 30. c5 {[%clk 0:00:51]}  Rd8 {[%clk 0:00:18]} 31. Nxf7+ {[%clk 0:00:50]} 1-0


[Site "https://www.chess.com"]

[Event "Titled Tuesday Blitz February 21 Early 2023"]
[White "Lorenzo De La Riva, Lazaro"]
[Black "Ilinca Ilinca, Felix Antonio"]
[WhiteFideId "2268809"]
[BlackFideId "54764998"]
[WhiteElo "2404"]
[BlackElo "2266"]
[Result "1-0"]
[Round "04"]
[TimeControl "180+2"]
[Date "2023.02.21"]
[WhiteClock "0:00:25"]
[BlackClock "0:01:05"]

1. Nc3 {[%clk 0:03:00]}  d5 {[%clk 0:02:57]} 2. d4 {[%clk 0:02:58]}  e6 {[%clk 0:02:55]} 3. e4 {[%clk 0:02:55]}  Nf6 {[%clk 0:02:44]} 4. e5 {[%clk 0:02:53]}  Nfd7 {[%clk 0:02:45]} 5. Nce2 {[%clk 0:02:53]}  c5 {[%clk 0:02:38]} 6. c3 {[%clk 0:02:52]}  Nc6 {[%clk 0:02:34]} 7. Nf3 {[%clk 0:02:51]}  cxd4 {[%clk 0:02:25]} 8. cxd4 {[%clk 0:02:48]}  f6 {[%clk 0:02:24]} 9. Nf4 {[%clk 0:02:37]}  Bb4+ {[%clk 0:02:14]} 10. Bd2 {[%clk 0:02:20]}  Qe7 {[%clk 0:02:12]} 11. exf6 {[%clk 0:02:15]}  Nxf6 {[%clk 0:02:07]} 12. Bb5 {[%clk 0:02:11]}  Ne4 {[%clk 0:02:00]} 13. O-O {[%clk 0:02:07]}  Nxd2 {[%clk 0:01:54]} 14. Nxd2 {[%clk 0:02:06]}  O-O {[%clk 0:01:52]} 15. Ne2 {[%clk 0:01:42]}  Bd7 {[%clk 0:01:51]} 16. Nf3 {[%clk 0:01:20]}  Bd6 {[%clk 0:01:47]} 17. Ng3 {[%clk 0:01:14]}  Qf6 {[%clk 0:01:35]} 18. Bxc6 {[%clk 0:01:09]}  bxc6 {[%clk 0:01:31]} 19. Re1 {[%clk 0:01:08]}  c5 {[%clk 0:01:29]} 20. dxc5 {[%clk 0:01:04]}  Bxc5 {[%clk 0:01:29]} 21. Qd2 {[%clk 0:01:03]}  Rab8 {[%clk 0:01:27]} 22. b3 {[%clk 0:01:02]}  Bb4 {[%clk 0:01:26]} 23. Qe3 {[%clk 0:00:57]}  Bxe1 {[%clk 0:01:25]} 24. Rxe1 {[%clk 0:00:58]}  a5 {[%clk 0:01:17]} 25. Ne5 {[%clk 0:00:54]}  Be8 {[%clk 0:01:16]} 26. f3 {[%clk 0:00:41]}  Qd8 {[%clk 0:01:09]} 27. Kh1 {[%clk 0:00:36]}  a4 {[%clk 0:01:07]} 28. Nd3 {[%clk 0:00:34]}  axb3 {[%clk 0:01:05]} 29. axb3 {[%clk 0:00:31]}  Rxb3 {[%clk 0:01:05]} 30. Qxe6+ {[%clk 0:00:25]} 1-0


[Site "https://www.chess.com"]

[Event "Titled Tuesday Blitz February 21 Early 2023"]
[White "Alhadad, Mahmoud"]
[Black "Womacka, Mathias"]
[WhiteFideId "11501863"]
[BlackFideId "4611390"]
[WhiteElo "1840"]
[BlackElo "2396"]
[Result "0-1"]
[Round "04"]
[TimeControl "180+2"]
[Date "2023.02.21"]
[WhiteClock "0:00:02"]
[BlackClock "0:00:28"]

1. e4 {[%clk 0:03:00]}  c5 {[%clk 0:02:59]} 2. Nc3 {[%clk 0:03:01]}  Nc6 {[%clk 0:02:58]} 3. Bb5 {[%clk 0:03:01]}  Nd4 {[%clk 0:02:57]} 4. Nf3 {[%clk 0:03:01]}  Nxb5 {[%clk 0:02:56]} 5. Nxb5 {[%clk 0:03:02]}  d6 {[%clk 0:02:53]} 6. d4 {[%clk 0:03:01]}  Nf6 {[%clk 0:02:52]} 7. Qd3 {[%clk 0:02:50]}  a6 {[%clk 0:02:46]} 8. Nc3 {[%clk 0:02:49]}  cxd4 {[%clk 0:02:47]} 9. Nxd4 {[%clk 0:02:48]}  g6 {[%clk 0:02:42]} 10. Bg5 {[%clk 0:02:47]}  Bg7 {[%clk 0:02:43]} 11. O-O {[%clk 0:02:35]}  O-O {[%clk 0:02:42]} 12. Rad1 {[%clk 0:02:34]}  b5 {[%clk 0:02:39]} 13. Rfe1 {[%clk 0:02:32]}  Bb7 {[%clk 0:02:37]} 14. Nb3 {[%clk 0:02:17]}  Rc8 {[%clk 0:02:25]} 15. Nd5 {[%clk 0:02:16]}  Nxd5 {[%clk 0:02:14]} 16. exd5 {[%clk 0:02:16]}  Re8 {[%clk 0:02:15]} 17. Re2 {[%clk 0:01:52]}  Bxb2 {[%clk 0:02:10]} 18. Rde1 {[%clk 0:01:50]}  Bc3 {[%clk 0:01:46]} 19. Rd1 {[%clk 0:01:23]}  Bg7 {[%clk 0:01:42]} 20. Rde1 {[%clk 0:01:20]}  Bc3 {[%clk 0:01:40]} 21. Rd1 {[%clk 0:01:20]}  Qd7 {[%clk 0:01:39]} 22. Nd2 {[%clk 0:00:36]}  Bg7 {[%clk 0:01:30]} 23. Rde1 {[%clk 0:00:35]}  Rc3 {[%clk 0:01:07]} 24. Qe4 {[%clk 0:00:29]}  e6 {[%clk 0:01:07]} 25. Qh4 {[%clk 0:00:29]}  Bxd5 {[%clk 0:01:04]} 26. Bf6 {[%clk 0:00:29]}  Rxc2 {[%clk 0:00:58]} 27. Bxg7 {[%clk 0:00:28]}  Kxg7 {[%clk 0:00:59]} 28. Ne4 {[%clk 0:00:15]}  Rxe2 {[%clk 0:00:48]} 29. Qf6+ {[%clk 0:00:14]}  Kg8 {[%clk 0:00:48]} 30. Rxe2 {[%clk 0:00:13]}  Bxe4 {[%clk 0:00:45]} 31. Rxe4 {[%clk 0:00:14]}  d5 {[%clk 0:00:45]} 32. Rh4 {[%clk 0:00:12]}  Qe7 {[%clk 0:00:45]} 33. Qf4 {[%clk 0:00:11]}  e5 {[%clk 0:00:44]} 34. Qg3 {[%clk 0:00:10]}  e4 {[%clk 0:00:39]} 35. Qh3 {[%clk 0:00:09]}  f5 {[%clk 0:00:36]} 36. g4 {[%clk 0:00:09]}  f4 {[%clk 0:00:34]} 37. Qc3 {[%clk 0:00:04]}  Qxh4 {[%clk 0:00:31]} 38. h3 {[%clk 0:00:04]}  Qe7 {[%clk 0:00:30]} 39. Qc6 {[%clk 0:00:03]}  Qe6 {[%clk 0:00:29]} 40. Qc7 {[%clk 0:00:02]}  e3 {[%clk 0:00:29]} 41. Qxf4 {[%clk 0:00:02]}  e2 {[%clk 0:00:28]} 42. Kg2 {[%clk 0:00:02]}  e1=Q {[%clk 0:00:28]} 0-1


[Site "https://www.chess.com"]

[Event "Titled Tuesday Blitz February 21 Early 2023"]
[White "Deev, Andrei"]
[Black "Yeritsyan, Hayk"]
[WhiteFideId "4102690"]
[BlackFideId "13307320"]
[WhiteElo "2390"]
[BlackElo "2241"]
[Result "1-0"]
[Round "04"]
[TimeControl "180+2"]
[Date "2023.02.21"]
[WhiteClock "0:00:37"]
[BlackClock "0:00:09"]

1. e4 {[%clk 0:03:00]}  c6 {[%clk 0:02:16]} 2. c4 {[%clk 0:02:59]}  d5 {[%clk 0:02:07]} 3. cxd5 {[%clk 0:02:58]}  cxd5 {[%clk 0:02:07]} 4. exd5 {[%clk 0:02:59]}  Qxd5 {[%clk 0:02:00]} 5. Nc3 {[%clk 0:02:59]}  Qd8 {[%clk 0:02:00]} 6. Bc4 {[%clk 0:02:58]}  Nf6 {[%clk 0:01:59]} 7. Nf3 {[%clk 0:02:58]}  e6 {[%clk 0:01:47]} 8. O-O {[%clk 0:02:56]}  Be7 {[%clk 0:01:47]} 9. d4 {[%clk 0:02:55]}  O-O {[%clk 0:01:47]} 10. Re1 {[%clk 0:02:51]}  Nc6 {[%clk 0:01:47]} 11. Bg5 {[%clk 0:02:48]}  Nb4 {[%clk 0:01:45]} 12. Ne5 {[%clk 0:02:41]}  Nbd5 {[%clk 0:01:40]} 13. Qf3 {[%clk 0:02:16]}  a6 {[%clk 0:01:26]} 14. Rad1 {[%clk 0:01:54]}  Nxc3 {[%clk 0:00:37]} 15. bxc3 {[%clk 0:01:53]}  Rb8 {[%clk 0:00:34]} 16. Bd3 {[%clk 0:01:50]}  Nd5 {[%clk 0:00:30]} 17. Qh3 {[%clk 0:01:35]}  g6 {[%clk 0:00:23]} 18. Bh6 {[%clk 0:01:14]}  Re8 {[%clk 0:00:23]} 19. Be4 {[%clk 0:01:07]}  Bf6 {[%clk 0:00:18]} 20. Qf3 {[%clk 0:00:55]}  Qc7 {[%clk 0:00:09]} 21. Bxd5 {[%clk 0:00:41]}  Bxe5 {[%clk 0:00:09]} 22. Rxe5 {[%clk 0:00:39]}  Bd7 {[%clk 0:00:09]} 23. Qf6 {[%clk 0:00:37]} 1-0


[Site "https://www.chess.com"]